bitfinex-derivatives/quotes_ETHF0:USTF0_20250520
["timestamp","ask_amount","ask_price","bid_price","bid_amount"]
[1747778628598,0.79605,2511.4,2511.3,0.9814]
[1747778628902,0.96842402,2511.4,2511.3,0.9814]
[1747778629095,0.79605,2511.4,2511.3,1.29989047]
[1747778630404,0.79605,2511.4,2511.3,2.09596047]
[1747778632907,0.79605,2511.4,2511.3,3.47376047]
[1747778633799,0.79605,2511.4,2511.3,3.84632804]
[1747778634002,0.79605,2511.4,2511.3,3.84633804]
[1747778636306,4.00368,2512.0,2511.9,0.79589]
[1747778636504,3.95312855,2512.4,2512.3,0.79576]
[1747778636704,3.15738855,2512.4,2512.3,2.78593]
[1747778637009,3.15738855,2512.4,2512.3,7.78593]
[1747778637406,0.00596398,2512.7,2512.6,0.79567]
[1747778637605,0.00596398,2512.7,2512.6,4.00347]
[1747778637906,0.00596398,2512.7,2512.6,18.2534]
[1747778639304,0.00596398,2512.7,2512.6,18.57189047]
[1747778639511,0.65664573,2512.8,2512.7,0.79564]
[1747778639708,0.99218745,2513.0,2512.9,0.79557]
[1747778640008,0.99218745,2513.0,2512.9,4.00337]
[1747778640204,0.99218745,2513.0,2512.9,10.993065]
[1747778640403,1.32032858,2513.3,2513.2,0.79548]
[1747778640809,0.80136398,2513.5,2513.2,5.197255]
[1747778641009,0.80136398,2513.5,2513.3,0.79542]
[1747778641010,0.973738,2513.5,2513.3,0.79542]
[1747778641208,0.973738,2513.5,2513.3,1.3951]
[1747778641406,0.00596398,2513.5,2513.4,0.79542]
[1747778641610,0.00596398,2513.5,2513.4,2.19052]
[1747778641908,0.00596398,2513.5,2513.4,4.17982]
[1747778642610,0.00596398,2513.5,2513.4,9.17982]
[1747778643012,0.00596398,2513.5,2513.4,10.04412]
[1747778643213,0.00596398,2513.5,2513.4,10.36261047]
[1747778643814,0.00596398,2513.5,2513.4,22.61761047]
[1747778644011,0.80134398,2513.5,2513.4,22.29912]
[1747778644714,0.80134398,2513.5,2513.4,21.5037]
[1747778645100,0.88620875,2513.5,2513.4,21.5037]
[1747778645309,0.09082875,2513.5,2513.4,22.29912]
[1747778645506,0.79542,2513.4,2513.3,0.8564]
[1747778645706,0.79542,2513.4,2512.9,3.2078]
[1747778645707,3.45933402,2513.4,2512.9,3.2078]
[1747778646002,3.45933402,2513.4,2512.8,0.37630858]
[1747778646003,0.96794402,2512.9,2512.8,0.37630858]
[1747778647412,0.79561,2512.8,2512.7,12.253]
[1747778647615,2.26638402,2512.8,2512.7,12.253]
[1747778647914,2.26638402,2512.8,2512.7,14.24285]
[1747778649905,2.26638402,2512.8,2512.7,15.03849]
[1747778650110,1.47077402,2512.8,2512.7,16.33039]
[1747778651310,0.17237402,2512.8,2512.7,16.33039]
[1747778651518,0.96798402,2512.8,2512.7,16.33039]
[1747778652118,0.96798402,2512.8,2512.7,14.24285]
[1747778652411,0.79564,2512.7,2512.6,3.2078]
[1747778652614,0.79571,2512.5,2512.4,0.32425195]
[1747778652816,0.96808402,2512.5,2512.4,0.32425195]
[1747778653407,0.96808402,2512.5,2512.4,0.00596398]
[1747778656711,0.96808402,2512.5,2512.0,3.52608797]
[1747778656712,0.79583,2512.1,2512.0,3.52608797]
[1747778656906,0.96820402,2512.1,2512.0,3.52608797]
[1747778657311,0.96820402,2512.1,2511.8,0.31828797]
[1747778657515,0.96826402,2511.9,2511.8,0.31828797]
[1747778657923,2.38126402,2511.9,2511.8,0.31828797]
[1747778659120,2.38126402,2511.9,2511.3,13.02606]
[1747778659121,1.98993,2511.7,2511.3,12.23]
[1747778659312,0.79605,2511.4,2511.3,12.23]
[1747778659711,2.20905,2511.4,2511.3,14.22096]
[1747778659913,2.38142402,2511.4,2511.3,1.99096]
[1747778660416,0.79618,2511.0,2510.9,3.58410858]
[1747778660615,0.96855402,2511.0,2510.9,0.37630858]
[1747778660816,0.79627,2510.7,2510.6,3.58410858]
[1747778661111,0.96864402,2510.7,2510.6,3.58410858]
[1747778662513,0.96864402,2510.7,2510.6,3.2078]
[1747778664624,0.17237402,2510.7,2510.3,5.3574]
[1747778664819,1.53827402,2510.6,2510.3,3.2078]
[1747778665017,0.79637,2510.4,2510.3,4.00419]
[1747778665418,0.79637,2510.4,2510.3,5.995945]
[1747778665612,0.79637,2510.4,2510.3,5.995955]
[1747778666322,0.79637,2510.4,2510.3,2.788155]
[1747778666720,0.17237402,2510.4,2509.9,3.52638223]
[1747778666918,0.79649,2510.1,2510.0,0.79646]
[1747778667324,0.79652,2510.0,2509.9,0.79651]
[1747778667519,0.17237402,2509.9,2509.6,3.2078]
[1747778667723,0.79659,2509.7,2509.6,4.00441]
[1747778667921,0.79659,2509.7,2509.6,5.99664]
[1747778668622,2.09528,2509.8,2509.7,0.79659]
[1747778668928,0.17237402,2509.7,2509.6,0.79662]
[1747778669121,1.47107402,2509.7,2509.6,0.79662]
[1747778669428,1.47107402,2509.7,2509.6,2.78893]
[1747778669727,1.2987,2509.7,2509.6,2.78893]
[1747778669922,1.67192,2510.0,2509.9,0.79653]
[1747778670322,1.67192,2510.0,2509.7,1.2756]
[1747778670323,1.04777402,2510.0,2509.7,1.2756]
[1747778670522,0.17237402,2509.8,2509.7,2.07219]
[1747778671324,4.9224,2510.5,2510.1,1.99114]
[1747778671530,0.17237402,2510.2,2509.9,5.19909]
[1747778671829,0.17237402,2510.2,2510.1,0.79646]
[1747778672032,3.89115,2510.5,2510.1,0.79646]
[1747778672229,3.89115,2510.5,2510.4,0.79637]
[1747778672624,4.06352402,2510.5,2510.4,0.79637]
[1747778672824,1.55257402,2510.5,2510.4,0.79637]
[1747778673131,1.3802,2510.5,2510.4,2.788045]
[1747778673523,1.3802,2510.5,2510.4,4.119145]
[1747778674023,2.17654,2510.5,2510.4,4.119145]
[1747778674731,1.3802,2510.5,2510.4,4.119145]
[1747778674933,0.79634,2510.5,2510.4,4.119145]
[1747778675133,0.7963,2510.7,2510.6,0.79629]
[1747778675530,2.11633398,2510.8,2510.7,0.79627]
[1747778676135,2.288708,2510.8,2510.7,0.79627]
[1747778676440,0.79634,2510.6,2510.5,0.79632]
[1747778676725,0.79634,2510.5,2510.4,2.06985]
[1747778676928,0.17237402,2510.7,2510.6,0.79627]
[1747778677133,0.00596398,2510.8,2510.7,0.79627]
[1747778677337,0.00596398,2510.8,2510.7,3.76967]
[1747778677530,0.00596398,2510.8,2510.7,5.76110499]
[1747778678139,0.00596398,2510.8,2510.7,18.00010499]
[1747778678332,0.79608,2511.4,2511.3,0.79608]
[1747778678539,0.79604,2511.5,2511.4,0.79602]
[1747778678733,0.79608,2511.4,2511.3,0.79606]
[1747778679232,0.96845402,2511.4,2511.3,0.79606]
[1747778680126,0.79612,2511.2,2511.1,2.07559598]
[1747778680327,0.96849402,2511.2,2511.1,0.00597598]
[1747778682727,4.17629402,2511.2,2511.1,0.00597598]
[1747778682926,9.17629402,2511.2,2511.1,0.00597598]
[1747778683541,9.17629402,2511.2,2510.7,0.79625]
[1747778683542,0.79627,2510.8,2510.7,0.79625]
[1747778683743,0.96864402,2510.8,2510.7,0.79625]
[1747778684341,0.17237402,2510.8,2510.7,0.79625]
[1747778684638,0.96861402,2510.8,2510.7,0.79625]
[1747778684831,0.96861402,2510.8,2510.7,2.78768499]
[1747778685032,0.96861402,2510.8,2510.7,0.79625]
[1747778686445,0.79624,2510.8,2510.7,3.10624557]
[1747778688243,0.79624,2510.8,2510.7,3.38741757]
[1747778689243,0.96861402,2510.8,2510.7,0.59973258]
[1747778689645,6.05347879,2510.8,2510.7,0.31856058]
[1747778689948,6.85927879,2510.8,2510.7,0.31856058]
[1747778690642,6.77441402,2510.8,2510.7,0.31856058]
[1747778691350,0.7964,2510.3,2510.2,0.281172]
[1747778691547,0.96877402,2510.3,2510.2,0.281172]
[1747778692663,0.96877402,2510.3,2510.2,0.31864935]
[1747778694267,1.75647402,2510.3,2510.2,0.31864935]
[1747778696063,1.75647402,2510.3,2510.0,0.281172]
[1747778696064,0.79653,2509.9,2509.8,0.281172]
[1747778696265,0.96890402,2509.9,2509.8,0.281172]
[1747778696857,2.33940402,2509.9,2509.8,0.281172]
[1747778697461,2.33940402,2509.9,2509.5,1.35724794]
[1747778697462,0.79662,2509.6,2509.5,0.79663]
[1747778697860,0.79666,2509.5,2509.4,0.281172]
[1747778698059,2.35253402,2509.5,2509.4,0.281172]
[1747778698462,7.35253402,2509.5,2509.4,0.281172]
[1747778698859,2.35253402,2509.5,2509.4,0.281172]
[1747778699056,1.3835,2509.5,2509.4,0.79669]
[1747778699257,2.18016,2509.5,2509.4,0.79669]
[1747778699458,1.3835,2509.5,2509.4,2.78916]
[1747778700062,1.3835,2509.5,2509.4,4.19076]
[1747778700770,1.3835,2509.5,2509.4,4.5094848]
[1747778702371,1.37744779,2509.5,2509.4,4.5094848]
[1747778702869,2.17409779,2509.5,2509.4,4.5094848]
[1747778703256,1.37744779,2509.5,2509.4,4.5094848]
[1747778703457,2.17409779,2509.5,2509.4,2.5170148]
[1747778703662,2.34647181,2509.5,2509.4,2.19829]
[1747778704165,0.79669,2509.4,2509.3,0.79671]
[1747778704359,0.79669,2509.4,2509.1,1.559672]
[1747778704360,0.17237402,2509.4,2509.1,1.559672]
[1747778704563,0.96912402,2509.2,2509.1,0.281172]
[1747778705266,1.83262402,2509.2,2509.1,0.31876345]
[1747778705568,3.17572402,2509.2,2509.1,0.31876345]
[1747778706775,8.49730695,2509.2,2509.1,0.31876345]
[1747778707161,0.79685,2508.9,2508.8,0.281172]
[1747778707465,0.79704,2508.3,2508.2,0.281172]
[1747778707962,4.17721402,2508.3,2508.2,0.281172]
[1747778708169,4.17721402,2508.3,2507.9,0.56061794]
[1747778708170,0.79713,2508.0,2507.9,0.56061794]
[1747778708366,16.40330402,2508.0,2507.9,0.56061794]
[1747778708766,21.40330402,2508.0,2507.9,0.56061794]
[1747778709175,21.40330402,2508.0,2507.8,1.9698686]
[1747778709176,0.79716,2507.9,2507.8,1.9698686]
[1747778709374,14.50683402,2507.9,2507.8,1.9698686]
[1747778709573,1.48367402,2507.9,2507.8,1.9698686]
[1747778709776,13.70967402,2507.9,2507.8,2.7670586]
[1747778710078,14.50683402,2507.9,2507.8,1.9698686]
[1747778710769,14.50683402,2507.9,2507.3,4.03762132]
[1747778710770,18.91039402,2507.9,2507.3,0.79734]
[1747778710971,0.96968402,2507.5,2507.4,0.79732]
[1747778711573,0.79731,2507.5,2507.4,0.79732]
[1747778712175,0.17237402,2507.5,2507.2,1.2868]
[1747778712374,1.294,2507.4,2507.3,0.79733]
[1747778712575,0.17237402,2507.5,2507.4,0.79732]
[1747778712775,0.96966402,2507.5,2507.4,0.79732]
[1747778712968,2.09129,2507.5,2507.4,0.79732]
[1747778713273,1.294,2507.5,2507.4,0.79732]
[1747778713473,2.09129,2507.5,2507.4,0.79732]
[1747778713773,2.26366402,2507.5,2507.4,0.79732]
[1747778714374,1.46637402,2507.5,2507.1,3.2078]
[1747778714674,2.26368402,2507.5,2507.3,0.79732]
[1747778714973,2.26369402,2507.5,2507.4,0.79732]
[1747778715174,0.79735,2507.4,2507.3,0.79734]
[1747778715370,0.79734,2507.4,2507.2,1.4006]
[1747778715563,2.09132,2507.5,2507.4,0.79732]
[1747778715766,2.26369402,2507.5,2507.4,0.79732]
[1747778716167,1.46637402,2507.5,2507.2,1.4006]
[1747778716379,2.26368402,2507.5,2507.4,0.79732]
[1747778716679,0.79735,2507.3,2507.2,2.19797]
[1747778716880,0.17237402,2507.4,2507.2,1.4006]
[1747778717070,0.79735,2507.3,2507.2,2.19796]
[1747778717579,0.79735,2507.3,2507.2,4.192175]
[1747778717772,0.79735,2507.3,2506.9,0.79748]
[1747778717773,0.79745,2507.0,2506.9,0.79748]
[1747778717980,0.17237402,2507.0,2506.9,2.17658]
[1747778718294,0.79748,2506.9,2506.8,2.4561]
[1747778718581,0.79748,2506.9,2506.8,1.5957]
[1747778718774,0.17237402,2506.9,2506.5,4.00538]
[1747778718980,0.79764,2506.5,2506.3,1.6482]
[1747778719178,0.96998402,2506.5,2506.4,1.3676]
[1747778720080,4.5896,2506.8,2506.7,0.79754]
[1747778720275,3.21377598,2507.2,2507.1,0.79742]
[1747778720782,3.21377598,2507.2,2507.1,2.791715]
[1747778721579,4.01116598,2507.2,2507.1,2.791715]
[1747778722174,4.18356,2507.2,2507.1,0.79742]
[1747778722374,0.79745,2507.0,2506.9,1.3676]
[1747778722875,0.7976,2506.6,2506.5,0.7976]
[1747778723075,0.79762,2506.5,2506.4,0.79762]
[1747778723277,2.31459402,2506.5,2506.4,0.79762]
[1747778723483,0.79774,2506.2,2506.1,0.79773]
[1747778723682,0.79774,2506.2,2506.1,2.09943]
[1747778723882,0.79768,2506.3,2506.2,0.79767]
[1747778724684,0.7977,2506.2,2506.1,2.09942]
[1747778724984,0.97007402,2506.3,2506.2,0.7977]
[1747778725178,0.17237402,2506.2,2506.1,2.09943]
[1747778725378,0.97007402,2506.2,2506.1,2.09943]
[1747778725678,0.17237402,2506.2,2506.1,2.09943]
[1747778726077,2.0826,2506.2,2506.1,2.09943]
[1747778726281,0.97007402,2506.2,2506.1,2.09943]
[1747778726582,0.97007402,2506.2,2506.1,0.79773]
[1747778727083,0.79776,2506.1,2506.0,0.79774]
[1747778727285,2.08264,2506.1,2506.0,0.79774]
[1747778727480,0.79777,2506.0,2505.9,4.5169]
[1747778727683,0.97014402,2506.0,2505.9,5.3147]
[1747778727882,0.79783,2505.8,2505.6,0.3191207]
[1747778728178,0.97023402,2505.7,2505.6,0.3191207]
[1747778728477,2.28553402,2505.7,2505.6,0.3191207]
[1747778728682,2.11316,2505.7,2505.6,0.3191207]
[1747778729384,2.11316,2505.7,2505.4,2.15453]
[1747778729385,0.79793,2505.5,2505.4,1.3566]
[1747778729586,3.38017402,2505.5,2505.2,1.1233207]
[1747778729784,0.17237402,2505.4,2505.3,0.79799]
[1747778729975,0.17237402,2505.7,2505.6,0.79786]
[1747778730784,0.97023402,2505.7,2505.6,0.79786]
[1747778731188,1.56487402,2505.7,2505.3,1.3521]
[1747778731383,0.79805,2505.1,2505.0,0.3191207]
[1747778731683,0.17237402,2504.2,2503.8,1.32002534]
[1747778731874,0.97081402,2503.9,2503.8,1.32002534]
[1747778732278,14.59031402,2503.9,2503.8,1.32002534]
[1747778732588,0.00598838,2504.3,2504.2,0.79834]
[1747778732882,3.2078,2505.3,2504.5,3.99123]
[1747778733084,0.17237402,2505.2,2505.1,0.79805]
[1747778733282,2.19043,2505.5,2505.3,0.79797]
[1747778733482,0.17237402,2505.2,2505.1,0.79805]
[1747778733887,2.1127,2505.3,2505.1,2.79394]
[1747778734187,0.97039402,2505.2,2505.0,0.79806]
[1747778734390,1.48707402,2505.2,2505.1,0.79805]
[1747778734583,1.3147,2505.2,2505.1,2.79394]
[1747778736689,1.3147,2505.2,2504.9,0.00598838]
[1747778736690,1.48707402,2505.2,2504.9,0.00598838]
[1747778736986,4.17826402,2505.0,2504.9,0.00598838]
[1747778738188,15.61017402,2505.0,2504.9,0.00598838]
[1747778738686,3.38017402,2505.0,2504.9,0.80410838]
[1747778738887,1.3147,2505.2,2505.1,0.79805]
[1747778739086,15.4378,2505.3,2505.2,0.79802]
[1747778739087,3.2078,2505.3,2505.2,0.79802]
[1747778739294,0.00598838,2505.4,2505.3,0.79799]
[1747778739587,8.38e-06,2505.4,2505.3,1.58519]
[1747778739785,8.38e-06,2505.4,2505.3,9.86782]
[1747778740184,8.38e-06,2505.4,2505.3,10.24426366]
[1747778740585,8.38e-06,2505.4,2505.3,10.65241225]
[1747778740779,3.2078,2507.0,2505.4,1.99485]
[1747778740989,3.38017402,2507.0,2506.9,0.79748]
[1747778741383,3.2078,2508.0,2507.1,1.99355]
[1747778741588,1.54457402,2507.8,2507.7,0.79723]
[1747778741788,1.54457402,2507.8,2507.7,2.08413]
[1747778741991,1.3722,2507.8,2507.7,4.07795]
[1747778742192,2.16939,2507.8,2507.7,3.28072]
[1747778742394,1.54457402,2507.8,2507.5,0.00598838]
[1747778742585,0.96963402,2507.6,2507.5,0.00598838]
[1747778742791,4.17743402,2507.6,2507.5,0.00598838]
[1747778742996,1.99325,2507.5,2506.9,1.17390366]
[1747778743193,0.96982402,2507.0,2506.9,0.37644366]
[1747778743391,4.17762402,2507.0,2506.9,0.37644366]
[1747778743593,9.17762402,2507.0,2506.9,0.37644366]
[1747778744096,9.17762402,2507.0,2506.5,0.75120648]
[1747778744097,0.79758,2506.6,2506.5,0.75120648]
[1747778744290,0.96995402,2506.6,2506.5,0.75120648]
[1747778744691,0.79764,2506.4,2506.3,0.00598838]
[1747778744894,4.17781402,2506.4,2506.3,0.00598838]
[1747778746198,17.60235402,2506.4,2505.5,1.6692]
[1747778746401,0.17237402,2505.6,2505.3,4.00577]
[1747778746700,0.17237402,2505.4,2505.3,0.79799]
[1747778746900,0.79802,2505.2,2505.1,1.3003]
[1747778747096,0.97042402,2505.2,2505.0,1.62777]
[1747778747401,1.6318,2505.6,2505.0,2.82563]
[1747778747599,1.54597402,2505.3,2505.2,0.79802]
[1747778747903,0.79802,2505.2,2505.1,1.3003]
[1747778748112,13.6593,2505.6,2505.1,3.29615]
[1747778748307,0.17237402,2505.3,2505.2,0.79802]
[1747778748495,0.17237402,2505.3,2505.2,2.09832]
[1747778748703,0.79796,2505.4,2505.2,4.09412]
[1747778749001,0.17237402,2505.3,2505.2,2.09831]
[1747778749196,0.97036402,2505.3,2505.2,2.09832]
[1747778749397,0.79799,2505.3,2505.2,1.3003]
[1747778750603,0.79797,2505.4,2505.3,0.79798]
[1747778750801,0.17237402,2505.3,2505.2,2.0983]
[1747778750995,1.54467402,2505.3,2505.2,2.0983]
[1747778751195,1.3723,2505.3,2505.2,2.0983]
[1747778751399,2.17029,2505.3,2505.2,1.3003]
[1747778751905,0.17237402,2504.9,2503.7,3.2078]
[1747778752198,0.97071402,2504.2,2503.6,1.32002534]
[1747778752505,0.97073402,2504.2,2503.6,1.32002534]
[1747778752801,0.79835,2504.2,2504.1,0.79836]
[1747778753004,12.878,2504.5,2504.2,0.79834]
[1747778753005,0.79832,2504.3,2504.2,0.79834]
[1747778753204,4.00611,2504.3,2504.1,0.79835]
[1747778753407,0.79831,2504.3,2504.2,1.4038]
[1747778753596,2.20321,2504.3,2504.2,2.20214]
[1747778753900,0.79867,2503.2,2502.6,3.9669586]
[1747778754204,0.97103402,2503.2,2503.1,1.4038]
[1747778754405,0.79866,2503.2,2503.1,1.4038]
[1747778754600,0.97103402,2503.2,2503.1,2.20249]
[1747778754802,3.2078,2503.3,2503.2,0.79866]
[1747778755199,3.2078,2503.3,2503.2,2.79606499]
[1747778755596,0.00598838,2503.4,2503.3,0.79863]
[1747778755810,3.2078,2504.2,2503.7,0.79849]
[1747778756014,2.16898198,2504.0,2503.8,1.4055]
[1747778756314,0.17237402,2504.0,2503.8,1.4055]
[1747778756606,0.79842,2504.0,2503.9,0.79844]
[1747778756808,0.79842,2504.0,2503.8,4.200825]
[1747778756996,0.79837,2504.1,2504.0,0.79838]
[1747778757194,0.79844,2503.9,2503.8,4.200835]
[1747778757401,0.79844,2503.9,2503.8,1.4055]
[1747778757599,2.96745198,2503.8,2503.7,8.38e-06]
[1747778757799,0.79872,2503.0,2502.9,0.56646181]
[1747778758004,6.1754936,2503.0,2502.9,0.56646181]
[1747778758710,7.4870936,2503.0,2502.9,0.56646181]
[1747778759010,0.79879,2502.8,2502.7,0.08486477]
[1747778759309,2.9677636,2502.8,2502.7,0.88368477]
[1747778759611,16.89243,2503.3,2503.2,0.79866]
[1747778759912,2.1689736,2503.7,2503.6,0.79853]
[1747778760098,2.9674936,2503.7,2503.6,0.79853]
[1747778760300,3.2078,2503.8,2503.7,0.7985]
[1747778760501,1.3116,2504.1,2503.7,2.1727]
[1747778760803,0.00598838,2504.2,2504.1,0.79837]
[1747778761213,0.00598838,2504.2,2504.1,4.173555]
[1747778761608,0.00598838,2504.2,2504.1,9.173555]
[1747778762613,0.00598838,2504.2,2504.1,4.173555]
[1747778762803,0.00598838,2504.2,2504.1,9.173555]
[1747778763201,0.00598838,2504.2,2504.1,22.059555]
[1747778764098,0.00598838,2504.2,2504.1,9.173555]
[1747778764301,0.00598838,2504.2,2504.1,4.173555]
[1747778765812,0.79838,2504.1,2504.0,0.79838]
[1747778766111,0.17237402,2504.1,2504.0,0.79838]
[1747778766310,0.97074402,2504.1,2504.0,2.795145]
[1747778766611,0.00598838,2504.2,2504.1,0.79837]
[1747778766810,0.00598838,2504.2,2504.1,16.89117]
[1747778767012,0.00598838,2504.2,2504.1,23.887855]
[1747778767210,0.00598838,2504.2,2504.1,11.002855]
[1747778767511,0.00598838,2504.2,2504.1,23.887855]
[1747778767710,0.00598838,2504.2,2504.1,5.204485]
[1747778767910,0.7984,2504.0,2503.9,2.1474]
[1747778768112,0.97077402,2504.0,2503.9,2.1474]
[1747778768309,2.9673736,2504.0,2503.9,2.1474]
[1747778768610,4.2933736,2504.0,2503.9,2.1474]
[1747778768810,3.4949736,2504.0,2503.9,2.1474]
[1747778769013,0.00598838,2504.2,2504.1,0.79837]
[1747778769406,2.17496198,2504.2,2504.1,0.79837]
[1747778769606,0.1783624,2504.2,2504.1,2.795055]
[1747778769807,0.1783624,2504.2,2504.1,0.79837]
[1747778770014,0.00598838,2504.2,2504.1,2.795055]
[1747778771303,2.97333198,2504.2,2503.8,1.9961]
[1747778771508,0.7984,2504.1,2504.0,0.79837]
[1747778771710,2.00258796,2504.2,2503.9,2.08944]
[1747778771711,0.17237402,2504.0,2503.9,2.08944]
[1747778772117,0.80433838,2504.2,2504.1,0.79837]
[1747778772314,2.80093796,2504.2,2504.1,0.79837]
[1747778772511,2.97331198,2504.2,2504.1,0.79837]
[1747778773326,2.97331198,2504.2,2503.8,0.31958863]
[1747778773327,12.37864198,2504.2,2503.8,0.31958863]
[1747778773517,6.1752136,2503.9,2503.8,0.31958863]
[1747778774016,11.1752136,2503.9,2503.8,0.31958863]
[1747778774212,0.79853,2503.6,2503.5,0.282056]
[1747778774413,19.0603036,2503.6,2503.5,0.282056]
[1747778774611,0.79872,2503.0,2502.9,1.62445244]
[1747778774815,2.9676936,2503.0,2502.9,0.28335244]
[1747778775417,45.3552,2503.2,2502.9,0.28335244]
[1747778775618,0.79882,2502.7,2502.6,0.56646181]
[1747778775923,0.79885,2502.6,2502.5,0.08486477]
[1747778776122,2.31862402,2502.6,2502.5,0.08486477]
[1747778776319,4.3152236,2502.6,2502.5,0.08486477]
[1747778776519,18.1142236,2502.6,2502.5,0.08486477]
[1747778776818,1.99659958,2502.6,2502.2,4.5489]
[1747778777008,2.12264838,2502.9,2502.4,1.99729]
[1747778777211,1.99659958,2502.8,2502.7,0.7988]
[1747778777714,0.80475838,2502.9,2502.7,0.7988]
[1747778777925,0.9771324,2502.9,2502.8,1.311]
[1747778778113,2.17496198,2502.9,2502.8,2.10979]
[1747778778309,2.00258796,2502.9,2502.8,2.10979]
[1747778778511,0.00598838,2502.9,2502.8,10.31759]
[1747778779818,2.00258796,2502.9,2502.8,10.40245477]
[1747778780212,0.00598838,2502.9,2502.8,10.40245477]
[1747778780420,3.2078,2503.9,2503.1,1.99671]
[1747778780626,3.2078,2504.2,2503.5,3.2078]
[1747778780818,0.17237402,2503.9,2503.8,0.79847]
[1747778781223,0.79843,2504.0,2503.9,0.79844]
[1747778781528,0.97080402,2504.0,2503.9,0.79844]
[1747778781725,0.17237402,2504.0,2503.9,2.11484]
[1747778781924,0.17237402,2504.0,2503.9,4.111685]
[1747778782223,0.79844,2503.9,2503.8,0.79845]
[1747778782727,0.79844,2503.9,2503.8,3.41282499]
[1747778783517,0.97081402,2503.9,2503.8,3.41282499]
[1747778783721,0.17237402,2503.9,2503.8,3.41282499]
[1747778783921,1.41078838,2504.2,2503.8,3.41282499]
[1747778784116,0.17237402,2504.0,2503.9,0.79843]
[1747778784418,0.00598838,2504.2,2504.1,0.79837]
[1747778784623,0.00598838,2504.2,2504.1,2.795055]
[1747778785920,0.00598838,2504.2,2504.1,7.795055]
[1747778786530,13.802,2505.0,2504.1,7.795055]
[1747778786531,3.2078,2505.2,2504.9,0.79809]
[1747778786819,3.2078,2505.2,2504.6,1.402]
[1747778786820,0.17237402,2505.0,2504.6,1.402]
[1747778787025,0.17237402,2505.0,2504.9,0.79812]
[1747778787215,5.30123,2505.2,2504.9,13.801]
[1747778787416,3.2078,2505.2,2505.1,0.79805]
[1747778787818,3.2078,2505.2,2505.1,2.79394]
[1747778788420,0.00598838,2505.4,2505.3,0.79799]
[1747778788624,0.00598838,2505.4,2505.3,16.59472]
[1747778789526,2.1740924,2505.4,2505.3,0.3192092]
[1747778789728,2.1740924,2505.4,2505.3,9.2e-06]
[1747778789729,11.1798524,2505.4,2505.3,9.2e-06]
[1747778790432,0.79809,2505.0,2504.9,0.57245019]
[1747778790735,1.99532,2504.9,2503.6,1.9698686]
[1747778790944,0.97086482,2503.7,2503.6,1.9698686]
[1747778791233,0.17236482,2503.7,2503.6,1.9698686]
[1747778791422,0.17236482,2503.7,2503.6,2.7683986]
[1747778791624,1.39338838,2503.9,2503.8,0.79847]
[1747778792020,0.00598838,2503.9,2503.8,2.79539499]
[1747778792328,1.3874,2504.5,2504.4,0.79828]
[1747778792727,1.55976482,2504.5,2504.4,0.79828]
[1747778793633,1.55976482,2504.5,2504.4,2.794725]
[1747778794134,2.35800482,2504.5,2504.4,1.996445]
[1747778794325,1.55976482,2504.5,2504.4,2.794725]
[1747778798138,1.55976482,2504.5,2504.4,0.79828]
[1747778798528,1.55976482,2504.5,2504.4,2.794725]
[1747778799339,0.00598838,2504.7,2504.6,0.79821]
[1747778799731,2.1746382,2504.7,2504.6,0.79821]
[1747778800032,0.1783532,2504.7,2504.6,0.79821]
[1747778800233,0.1783532,2504.7,2504.6,2.79449499]
[1747778800438,0.1783532,2504.7,2504.6,0.79821]
[1747778801128,0.1783532,2504.7,2504.6,2.79449499]
[1747778801636,0.00598838,2504.7,2504.6,2.79449499]
[1747778801941,0.00598838,2504.7,2504.6,19.80029499]
[1747778803232,0.00598838,2504.7,2504.6,20.11957314]
[1747778804236,8.38e-06,2504.7,2504.6,20.11957314]
[1747778804946,8.38e-06,2504.7,2504.6,25.11957314]
[1747778806237,8.38e-06,2504.7,2504.6,38.34057314]
[1747778807543,8.38e-06,2504.7,2504.6,33.33857314]
[1747778807940,0.1723732,2504.7,2504.6,6.32157314]
[1747778808245,6.1746382,2504.7,2504.6,0.31927815]
[1747778808945,5.3764582,2504.7,2504.6,0.79821]
[1747778809540,5.3764582,2504.7,2504.4,1.3038]
[1747778809742,1.34,2504.6,2504.5,0.79824]
[1747778810034,1.34,2504.6,2504.5,1.11756972]
[1747778810236,3.50872983,2504.6,2504.5,1.11756972]
[1747778811641,4.30693983,2504.6,2504.5,0.31932972]
[1747778812048,3.50872983,2504.6,2504.5,1.11756972]
[1747778812849,4.30693983,2504.6,2504.5,0.31932972]
[1747778813537,9.30693983,2504.6,2504.5,0.31932972]
[1747778814952,1.99564,2504.5,2504.1,0.79836]
[1747778815141,0.97070482,2504.2,2504.1,0.79836]
[1747778815343,0.7984,2504.1,2504.0,0.79837]
[1747778815543,1.374,2504.1,2504.0,0.79837]
[1747778815737,1.54636482,2504.1,2504.0,2.795135]
[1747778815941,1.54636482,2504.1,2504.0,4.084235]
[1747778816150,1.54636482,2504.1,2504.0,2.08747]
[1747778816648,1.54636482,2504.1,2504.0,2.40686688]
[1747778818556,0.17236482,2504.1,2504.0,4.40363188]
[1747778819051,1.3713,2504.3,2504.2,0.79834]
[1747778819244,1.54366482,2504.3,2504.2,0.79834]
[1747778819440,0.17236482,2504.3,2504.2,0.79834]
[1747778819643,1.2785,2504.6,2504.5,0.79824]
[1747778819853,8.38e-06,2504.7,2504.6,0.79821]
[1747778820248,8.38e-06,2504.7,2504.6,4.16529499]
[1747778821352,8.38e-06,2504.7,2504.6,4.48469187]
[1747778821749,8.38e-06,2504.7,2504.6,9.48469187]
[1747778822355,8.38e-06,2504.7,2504.6,22.95769187]
[1747778823155,8.38e-06,2504.7,2504.6,9.48469187]
[1747778823363,2.1686582,2504.7,2504.6,3.68648187]
[1747778823654,2.9668382,2504.7,2504.6,0.31939688]
[1747778824558,2.9668382,2504.7,2504.5,0.75603353]
[1747778824559,0.79821,2504.6,2504.5,0.75603353]
[1747778824752,0.79821,2504.6,2503.8,0.79846]
[1747778824753,0.79831,2504.3,2504.2,0.37968128]
[1747778825054,44.80611,2504.3,2504.2,0.37968128]
[1747778825355,6.17507982,2504.3,2504.2,0.37968128]
[1747778825754,46.97507982,2504.3,2504.2,0.37968128]
[1747778826150,2.16829482,2504.2,2503.8,0.75603353]
[1747778826454,4.17860482,2503.9,2503.8,0.75603353]
[1747778826757,0.79847,2503.8,2503.7,1.9698686]